Cogmind - Beta 17.1 @@@ ROGUE MODE // 2026.08.27 @ 22:29:36 Player: Jimothy Jimone Result: Destroyed by Y-45 Defender with Heavy Assault Rifle Performance ------------- Evolutions (2) 1000 Regions Visited (7) 1400 Robots Destroyed (82) 410 Value Destroyed (2354) 2354 Prototype IDs (26) 520 Alien Tech Used (0) 0 Bonus (645) 645 TOTAL SCORE: 6329 Bonus ------- High Alert Combat Kills 145 Entered Garrisons 200 Aligned with FarCom 300 Cogmind --------- Core Integrity 0/550 Matter 273/300 Energy 80/100 System Corruption 5% Temperature Cool (9) Movement Walking (260) Ox2 Location -8/Garrison Parts ------- > --- POWER (1) -------- (None) > --- PROPULSION (4) --- Aluminum Leg Aluminum Leg > --- UTILITY (4) ------ High-capacity Storage Unit Improved Signal Interpreter > --- WEAPON (2) ------- Light Assault Rifle Hammer > --- INVENTORY (20) --- Light Ion Engine Light Ion Engine Deuterium Engine High-capacity Storage Unit Medium Matter Pod (100) ECM Suite Shield Generator Relay Coupler [Demolisher] (24) High-powered Tractor Beam Decoy Drone Bay (0/16) Peak State ------------ > --- POWER ------------ Deuterium Engine > --- PROPULSION ------- Potential Leg Potential Leg > --- UTILITY ---------- High-capacity Storage Unit System Restoration Module Decoy Drone Bay > --- WEAPON ----------- Guided Plasma Cannon > --- INVENTORY -------- Light Ion Engine Light Ion Engine Wheel Wheel High-capacity Storage Unit Superbattery Medium Matter Pod Improved Signal Interpreter ECM Suite Shield Generator High-powered Tractor Beam Hammer Hammer [Rating: 52] Favorites ----------- Power Light Ion Engine Engine Light Ion Engine Power Core Nuclear Core Propulsion Potential Leg Leg Potential Leg Wheel Wheel Utility Shield Generator Device Shield Generator Storage High-capacity Storage Unit Processor Improved Signal Interpreter Protection Weapon Shielding Weapon Hammer Energy Gun EM Pulse Gun Energy Cannon Guided Plasma Cannon Ballistic Gun Light Assault Rifle Launcher Grenade Launcher Impact Weapon Hammer Build | -11 -10 -10 -10 -9 -8 -8 -8 ------- Run | Yrd Mat Min Exi Min Mat Sto Gar Slots Evolved 4 | . . . . . 4 . . Power . | . . . . . . . . Propulsion 2 | . . . . . 2 . . Utility 2 | . . . . . 2 . . Weapon . | . . . . . . . . Parts Attached 40 | 7 4 3 3 . 10 3 10 Power 4 | 1 . . . . 2 . 1 Engine 2 | 1 . . . . 1 . . Core 2 | . . . . . 1 . 1 Reactor . | . . . . . . . . Propulsion 16 | 2 2 2 2 . 2 2 4 Treads . | . . . . . . . . Leg 10 | . . . 2 . 2 2 4 Wheel 6 | 2 2 2 . . . . . Hover . | . . . . . . . . Flight . | . . . . . . . . Utility 11 | 2 . 1 1 . 5 . 2 Device 7 | 1 . 1 . . 4 . 1 Storage 2 | 1 . . 1 . . . . Processor 1 | . . . . . . . 1 Hackware . | . . . . . . . . Protection 1 | . . . . . 1 . . Artifact . | . . . . . . . . Weapon 9 | 2 2 . . . 1 1 3 Energy Gun 1 | 1 . . . . . . . Energy Cannon 1 | . . . . . . . 1 Ballistic Gun 2 | 1 . . . . . . 1 Ballistic Cannon . | . . . . . . . . Launcher 3 | . 1 . . . 1 1 . Special Weapon . | . . . . . . . . Impact Weapon 2 | . 1 . . . . . 1 Slashing Weapon . | . . . . . . . . Piercing Weapon . | . . . . . . . . Special Melee Weapon . | . . . . . . . . Unidentified Prototypes 1 | . . . . . . . 1 Parts Lost 22 | . . 1 . . 7 5 9 Power 2 | . . . . . . 1 1 Propulsion 11 | . . 1 . . 2 2 6 Utility 4 | . . . . . 4 . . Weapon 5 | . . . . . 1 2 2 Highest Loss Streak 9 | . . 1 . . 3 5 9 To Critical Strikes . | . . . . . . . . Average Backups 10 | 1 4 7 9 17 16 15 14 Power 1 | . 1 1 1 1 2 2 2 Propulsion 1 | . 1 . . 5 4 2 2 Utility 5 | . 2 5 5 7 7 7 7 Weapon 1 | . . . 1 2 2 2 1 Tool/Special . | . . . . . . . . Unused Backups 10 | . . 1 . 1 . . 8 Power 2 | . . . . 1 . . 1 Propulsion . | . . . . . . . . Utility 8 | . . 1 . . . . 7 Weapon . | . . . . . . . . Tool/Special . | . . . . . . . . Average Slot Usage (%) 92 | . 100 98 100 100 87 84 61 Engine 10 | . 14 14 14 14 1 1 4 Core 1 | . . . . . 7 6 3 Leg 15 | . . . 22 28 29 32 23 Wheel 11 | . 28 26 5 . . . 1 Device 13 | . 14 14 14 14 16 18 4 Storage 12 | . 14 14 14 14 9 9 9 Protection 1 | . . . . . 5 . . Ballistic Gun 1 | . 12 . . . . . . Launcher 11 | . 13 14 14 14 8 14 . Impact Weapon 9 | . 1 14 14 14 9 2 1 Peak Build Rating 52 | 7 8 9 29 31 43 47 52 Average Rating 22 | 5 7 8 24 30 37 45 38 On Entrance 20 | . 7 8 9 29 31 43 40 Avg Prop Armor Cover (%) . | . . . . . . . . Naked Turns . | . . . . . . . . Heaviest Build 74 | 12 14 15 50 50 58 62 74 Greatest Support 80 | 32 32 20 60 60 80 80 80 Greatest Overweight (x) 2 | . . 1 . . . 1 2 Average Overweight (x) . | . . . . . . . . Largest Inventory Capacity 20 | 8 8 8 20 20 20 20 20 Average Capacity 13 | 7 8 8 15 20 20 20 20 Most Carried 20 | 3 8 8 13 20 20 17 18 Average Carried 11 | 1 4 7 10 19 18 16 15 Final Capacity 20 | 8 8 8 20 20 20 20 20 Final Carried 20 | 3 8 8 13 20 16 16 11 Scrap Suit Usage (%) 8 | . . . . . 16 100 1 Class Distribution -------------------- 100% | Mutant Dominant Class ---------------- Mutant | -10/Materials Mutant | -10/Mines Mutant | -10/Exiles Mutant | -9/Mines Mutant | -8/Materials Mutant | -8/Storage Mutant | -8/Garrison Resources | -11 -10 -10 -10 -9 -8 -8 -8 ----------- Run | Yrd Mat Min Exi Min Mat Sto Gar Matter Collected 1987 | 240 356 225 . 60 513 208 385 Remotely 297 | . . . . . 297 . . Salvage Created 1935 | 20 301 163 . 110 634 237 470 Parts 141 | 4 24 8 . 7 45 21 32 Haulers Intercepted 1 | . . . . . . 1 . Recyclers Shooed 5 | . 3 . . . 2 . . Parts Field Recycled . | . . . . . . . . Retrieved Matter . | . . . . . . . . Parts Self-Destructed . | . . . . . . . . Prevented . | . . . . . . . . Parts Restored . | . . . . . . . . Kills | -11 -10 -10 -10 -9 -8 -8 -8 ------- Run | Yrd Mat Min Exi Min Mat Sto Gar Combat Hostiles Destroyed 45 | . 2 4 . 3 14 8 14 Melee 1 | . . . . . 1 . . Cannons 14 | . . . . . . . 14 AOE 30 | . 2 4 . 3 13 8 . Classes Destroyed 11 | 1 6 . . 1 1 2 . Worker 9 | . 1 3 . . 3 2 . Builder 13 | . 5 . . . 5 3 . Tunneler 3 | 1 . 2 . . . . . Hauler 1 | . . . . . . 1 . Recycler 7 | . 2 . . . 5 . . Operator 1 | . 1 . . . . . . Watcher 3 | . 1 . . . 2 . . Swarmer 10 | . . . . . . 3 7 Grunt 19 | . 2 4 . 2 5 1 5 Brawler 2 | . . . . 1 1 . . Sentry 14 | . . . . . 8 4 2 Best Kill Streak 19 | 1 4 2 . 3 19 9 10 Combat Bots Only 10 | . 2 2 . 3 6 7 10 Max Kills in Single Turn 3 | 1 3 2 . 2 3 3 1 Gunslinging . | . . . . . . . . Exploded 2 | . 2 2 . 2 2 2 . Melee 1 | . . . . . 1 . . Uniques/NPCs Destroyed . | . . . . . . . . Combat | -11 -10 -10 -10 -9 -8 -8 -8 -------- Run | Yrd Mat Min Exi Min Mat Sto Gar Hostile Shots Fired 310 | . 2 10 . 1 83 66 148 Missed 105 | . 2 4 . 1 30 27 41 Hits 205 | . . 6 . . 53 39 107 Melee 5 | . . . . . 5 . . Projectile 200 | . . 6 . . 48 39 107 Critical Strikes 6 | . . . . . 3 . 3 Actively Blocked 1 | . . . . . 1 . . Damage Taken 3133 | . 40 147 . 22 749 985 1190 Core 597 | . 22 12 . 10 84 194 275 Absorbed by Shields 247 | . . 10 . 8 229 . . Redirected to Shielding 37 | . . . . . 37 . . Regen/Repaired (Parts) 63 | . . . . . 63 . . Core Remaining (%) 91 | 100 . . . 82 . . . Volleys Fired 153 | 16 17 20 . 3 62 11 24 Largest 2 | 1 1 1 . 1 1 2 1 Hottest 120 | 20 30 30 . 30 33 66 120 Shots Fired 163 | 16 17 20 . 3 62 21 24 Gun 18 | 16 . . . . . . 2 Cannon 22 | . . . . . . . 22 Launcher 123 | . 17 20 . 3 62 21 . Special . | . . . . . . . . Kinetic 18 | 16 . . . . . . 2 Thermal 22 | . . . . . . . 22 Explosive 123 | . 17 20 . 3 62 21 . Electromagnetic . | . . . . . . . . Robot Hit Streak 23 | 3 4 4 . 3 7 3 23 Robot Miss Streak 5 | 2 1 2 . . 3 5 . Penetration Max . | . . . . . . . . Secondary Targets . | . . . . . . . . Shots Hit Robots 91 | 9 5 5 . 2 38 8 24 Core Hits 152 | 3 15 16 . 5 66 31 16 Critical Kills . | . . . . . . . . Critical Parts Destroyed 1 | . . . . . 1 . . Critical Strikes 1 | . . . . . 1 . . Smash 1 | . . . . . 1 . . Melee Attacks 11 | . . 1 . . 8 . 2 Impact 11 | . . 1 . . 8 . 2 Slashing . | . . . . . . . . Piercing . | . . . . . . . . Sneak Attacks . | . . . . . . . . Combat Hostiles . | . . . . . . . . Follow-up Attacks . | . . . . . . . . Damage Inflicted 6161 | 84 747 717 . 157 2628 1022 806 Guns 98 | 84 . . . . . . 14 Cannons 752 | . . . . . . . 752 Explosions 5109 | . 747 677 . 157 2506 1022 . Melee 187 | . . 40 . . 121 . 26 Ramming 15 | . . . . . 1 . 14 Kinetic 98 | 84 . . . . . . 14 Thermal 793 | . . 41 . . . . 752 Explosive 5068 | . 747 636 . 157 2506 1022 . Electromagnetic . | . . . . . . . . Impact 187 | . . 40 . . 121 . 26 Slashing . | . . . . . . . . Piercing . | . . . . . . . . Highest Corruption 5 | . . . . . . . 5 Average Corruption 5 | . . . . . . . 5 Corruption Purged . | . . . . . . . . Corruption Blocked . | . . . . . . . . Effects 1 | . . . . . . . 1 Matter Fused 1 | . . . . . . . 1 Overload Shots . | . . . . . . . . Overflow Damage 160 | . 21 25 . . 57 57 . Projectiles . | . . . . . . . . Explosions 134 | . 21 25 . . 31 57 . Melee 26 | . . . . . 26 . . Knockbacks 1 | . . 1 . . . . . Impact 1 | . . 1 . . . . . Kinetic . | . . . . . . . . Secondary . | . . . . . . . . Self-Inflicted Damage 483 | . 40 82 . 30 161 164 6 Shots 22 | . 2 3 . 2 8 7 . Rammed 4 | . . . . . . . 4 Targets Rammed 5 | . . . . . 1 . 4 Kicked 1 | . . . . . 1 . . Crushed . | . . . . . . . . Highest Temperature 704 | . . 15 . . 19 48 704 Average Temperature 195 | . . 8 . . 5 21 249 Received Heat Transfer 759 | . . 45 . . 255 198 261 Effects 9 | . . . . . . . 9 Interference 1 | . . . . . . . 1 Matter Decay 2 | . . . . . . . 2 Short Circuit 1 | . . . . . . . 1 Damage (minor) 4 | . . . . . . . 4 Damage (core) 1 | . . . . . . . 1 Siege Activations . | . . . . . . . . Martial Activations . | . . . . . . . . Shielding Activations . | . . . . . . . . Robots Disrupted . | . . . . . . . . Combat Hostiles . | . . . . . . . . Robots Corrupted . | . . . . . . . . Combat Hostiles . | . . . . . . . . Parts Fried . | . . . . . . . . Impact Corruptions 2 | . . 1 . . 1 . . Robots Melted . | . . . . . . . . Combat Hostiles . | . . . . . . . . Parts Melted 5 | . . . . . . . 5 Heat Transferred 1688 | . . 50 . . . . 1638 Parts Sabotaged . | . . . . . . . . Parts Stolen . | . . . . . . . . Parts Stripped . | . . . . . . . . Power Chain Reactions . | . . . . . . . . Alert | -11 -10 -10 -10 -9 -8 -8 -8 ------- Run | Yrd Mat Min Exi Min Mat Sto Gar Maximum Alert Level 2 | . . 1 . . 2 2 2 Low Security (%) 56 | 100 100 49 . 100 50 . . Level 1 35 | . . 50 . . 25 84 75 Level 2 8 | . . . . . 23 15 25 Level 3 . | . . . . . . . . Level 4 . | . . . . . . . . Level 5 . | . . . . . . . . High Security . | . . . . . . . . Max Security . | . . . . . . . . Peak Influence 616 | 5 177 352 . 83 531 568 616 Initial 356 | . . 64 . . . 226 356 Average 196 | . 99 216 . 36 235 302 396 Influence Increases 2417 | 5 297 376 . 105 802 442 390 Destroy 0b10 Robot/C 900 | . 40 80 . 60 280 160 280 Destroy 0b10 Robot/NC 185 | 5 50 25 . . 75 30 . Destroy Leader 168 | . 12 20 . 10 74 52 . Successful Hack 9 | . . . . . 9 . . Disable Machine 450 | . 105 150 . 15 90 90 . Anti-Garrison Action 50 | . . . . . . . 50 Destroy Structure 565 | . 90 86 . 20 259 110 . Partial Spotted 30 | . . 15 . . 15 . . Lose Combat Pursuer 60 | . . . . . . . 60 Influence Decreases 1861 | 5 130 439 104 105 264 432 382 Entered New Map 711 | . . 103 104 . . 312 192 Time Decay 830 | 5 130 326 . 105 194 70 . Lost Part 220 | . . 10 . . 70 50 90 Lost Ally 100 | . . . . . . . 100 Squads Dispatched 6 | . . . . . 5 1 . Investigation . | . . . . . . . . Extermination . | . . . . . . . . Reinforcement . | . . . . . . . . Assault 2 | . . . . . 2 . . Garrison 4 | . . . . . 3 1 . Intercept . | . . . . . . . . Searches Triggered . | . . . . . . . . Construction Impeded . | . . . . . . . . Haulers Reinforced . | . . . . . . . . Active Scanning Responses . | . . . . . . . . Cargo Convoy Interrupts . | . . . . . . . . Stealth | -11 -10 -10 -10 -9 -8 -8 -8 --------- Run | Yrd Mat Min Exi Min Mat Sto Gar Distress Signals 3 | . 1 . . . 2 . . Communications Jammed . | . . . . . . . . Distress Signals . | . . . . . . . . Times Spotted 65 | . 6 4 . 1 20 11 23 Peak Tracking Total 10 | . 5 2 . . 5 9 10 Tactical Retreats 2 | . . . . . . . 2 Traps | -11 -10 -10 -10 -9 -8 -8 -8 ------- Run | Yrd Mat Min Exi Min Mat Sto Gar Traps Triggered 1 | . . . . . . . 1 Indirectly . | . . . . . . . . Trap Hack Attempts . | . . . . . . . . Triggered . | . . . . . . . . Disarmed . | . . . . . . . . Reprogrammed . | . . . . . . . . Reused . | . . . . . . . . Traps Extracted . | . . . . . . . . Installed . | . . . . . . . . Triggered . | . . . . . . . . Machines | -11 -10 -10 -10 -9 -8 -8 -8 ---------- Run | Yrd Mat Min Exi Min Mat Sto Gar Machines Disabled 31 | . 7 10 . 1 6 6 1 Max in Single Turn 4 | . 1 4 . 1 2 2 1 Garrison Relay 1 | . . . . . . . 1 Machines Repaired . | . . . . . . . . Machines Dismantled . | . . . . . . . . Machines Sabotaged . | . . . . . . . . Overloaded Fab Kills . | . . . . . . . . Hacking | -11 -10 -10 -10 -9 -8 -8 -8 --------- Run | Yrd Mat Min Exi Min Mat Sto Gar Machines Accessed 7 | . 1 . 1 1 3 1 . Terminals 3 | . 1 . . . 2 . . Fabricators . | . . . . . . . . Repair Stations 1 | . . . . . 1 . . Recycling Units . | . . . . . . . . Scanalyzers . | . . . . . . . . Garrison Access 1 | . . . . . . 1 . Total Hacks 12 | . 1 . 1 1 8 1 . Successful 9 | . 1 . 1 1 5 1 . Failed 3 | . . . . . 3 . . Catastrophic . | . . . . . . . . Database Lockouts . | . . . . . . . . Manual 1 | . . . 1 . . . . Terminals 5 | . 1 . . . 4 . . Fabricators . | . . . . . . . . Repair Stations 4 | . . . . . 4 . . Recycling Units . | . . . . . . . . Scanalyzers . | . . . . . . . . Garrison Access 1 | . . . . . . 1 . Terminal Hacks 6 | . 1 . 1 1 3 . . Prototype ID Bank 1 | . . . . . 1 . . Open Door 1 | . . . . 1 . . . Alert Level 1 | . . . . . 1 . . Locate Traps 1 | . . . . . 1 . . Dispatch Records 1 | . 1 . . . . . . Proto ID Catalog 1 | . . . 1 . . . . Fabricator Hacks . | . . . . . . . . Repair Station Hacks 2 | . . . . . 2 . . Scan Component 1 | . . . . . 1 . . Repair 1 | . . . . . 1 . . Recycling Unit Hacks . | . . . . . . . . Scanalyzer . | . . . . . . . . Garrison Access Hacks 1 | . . . . . . 1 . Unlock Access 1 | . . . . . . 1 . Unauthorized Hacks . | . . . . . . . . Terminals . | . . . . . . . . Fabricators . | . . . . . . . . Repair Stations . | . . . . . . . . Recycling Units . | . . . . . . . . Scanalyzers . | . . . . . . . . Garrison Access . | . . . . . . . . Data Cores Recovered . | . . . . . . . . Used . | . . . . . . . . Hacking Detections 4 | . . . . . 3 1 . Full Trace Events . | . . . . . . . . Feedback Events . | . . . . . . . . Feedback Blocked . | . . . . . . . . Robot Schematics Acquired . | . . . . . . . . Robots Built . | . . . . . . . . Authchips . | . . . . . . . . Time . | . . . . . . . . Total Robot Build Rating . | . . . . . . . . Part Schematics Acquired . | . . . . . . . . Parts Built . | . . . . . . . . Authchips . | . . . . . . . . Time . | . . . . . . . . Total Part Build Rating . | . . . . . . . . Part Studies Acquired . | . . . . . . . . Parts Repaired 1 | . . . . . 1 . . Time 32 | . . . . . 32 . . Parts Recycled . | . . . . . . . . Recycled Matter . | . . . . . . . . Retrieved Matter . | . . . . . . . . Retrieved Components . | . . . . . . . . Parts Scanalyzed . | . . . . . . . . Part Schematics Acquired . | . . . . . . . . Parts Damaged . | . . . . . . . . Bothacking | -11 -10 -10 -10 -9 -8 -8 -8 ------------ Run | Yrd Mat Min Exi Min Mat Sto Gar Used RIF Installer . | . . . . . . . . Robots Hacked . | . . . . . . . . Non-combat . | . . . . . . . . Combat . | . . . . . . . . Robot Hacks Applied . | . . . . . . . . Relay Couplers Released 3 | . . . . . . . 3 Machine Destruction 3 | . . . . . . . 3 Fabnet Peak Effective % . | . . . . . . . . Robots Rewired . | . . . . . . . . Allies Hacked . | . . . . . . . . Hacks Repelled . | . . . . . . . . Allies | -11 -10 -10 -10 -9 -8 -8 -8 -------- Run | Yrd Mat Min Exi Min Mat Sto Gar Total Allies . | . . . . . . . . Largest Group . | . . . . . . . . Highest-Rated Group . | . . . . . . . . Highest-Rated Ally . | . . . . . . . . Total Orders . | . . . . . . . . Ally Attacks . | . . . . . . . . Total Damage . | . . . . . . . . Kills . | . . . . . . . . Allies Corrupted . | . . . . . . . . Allies Melted . | . . . . . . . . Intel | -11 -10 -10 -10 -9 -8 -8 -8 ------- Run | Yrd Mat Min Exi Min Mat Sto Gar Active Infowar (turns) 514 | 61 323 130 . . . . . Seismic 514 | 61 323 130 . . . . . Robot Analysis Total . | . . . . . . . . Derelict Logs Recovered 3 | . . 1 . 2 . . . Drone Launches 16 | . . . . . . . 16 Drone Recoveries . | . . . . . . . . Exploration | -11 -10 -10 -10 -9 -8 -8 -8 ------------- Run | Yrd Mat Min Exi Min Mat Sto Gar Turns Passed 2777 | 158 323 720 476 236 447 153 264 Spaces Moved 2415 | 126 295 825 427 228 246 101 167 Core 19 | 19 . . . . . . . Treads . | . . . . . . . . Legs 1049 | . . . 310 228 246 101 164 Wheels 1347 | 107 295 825 117 . . . 3 Hover . | . . . . . . . . Flight . | . . . . . . . . Fastest Speed 50 | 50 80 80 80 90 90 90 60 Average Speed 89 | 92 90 81 87 90 100 105 106 Slowest Speed 260 | 100 100 95 90 90 105 170 260 Overloaded Moves 38 | . . . . . . . 38 Propulsion Burnouts . | . . . . . . . . Robots Hopped . | . . . . . . . . Potential Cave-ins 3 | . . . . . 3 . . Cave-ins Triggered 1 | . . . . . . 1 . Exploration Rate (%) 40 | 5 34 99 62 38 32 20 35 Regions Visited 7 Branch Regions 4 Pre-discovered Areas 2 | . . 1 . 1 . . . Known Exits Taken 2 | . . . . . 1 1 . Unknown Exits Taken 5 | 1 1 1 1 1 . . . Scrap Searched 3 | . . 2 . 1 . . . Spaces Dug . | . . . . . . . . Terrain Destroyed 730 | . 86 95 . 24 378 147 . Melee . | . . . . . . . . Projectile . | . . . . . . . . AOE 730 | . 86 95 . 24 378 147 . Terrain Rammed . | . . . . . . . . Walls Destroyed . | . . . . . . . . Machines Disabled . | . . . . . . . . Actions | -11 -10 -10 -10 -9 -8 -8 -8 --------- Run | Yrd Mat Min Exi Min Mat Sto Gar Total 2834 | 151 331 853 529 256 368 126 220 Wait 170 | . 9 . 94 18 39 7 3 Move 2408 | 125 294 824 426 227 245 100 167 Hop . | . . . . . . . . Pick Up 30 | 3 5 2 5 7 2 3 3 Fast Attach 13 | 7 . 1 . . 2 . 3 Attach 21 | . . 1 . . 7 4 9 Detach 4 | . . . . . . 1 3 Swap 11 | . 4 1 3 . 2 . 1 Drop 8 | . 2 3 1 1 . . 1 Fire 153 | 16 17 20 . 3 62 11 24 Melee 11 | . . 1 . . 8 . 2 Ram 4 | . . . . . . . 4 Kick 1 | . . . . . 1 . . Crush . | . . . . . . . . Escape Stasis . | . . . . . . . . Rewire . | . . . . . . . . Trap . | . . . . . . . . Miscellaneous . | . . . . . . . . Route ------- -11/Scrapyard -10/Materials (discovered 2 exits: [*Mat] / [*Min]) -10/Mines (discovered 4 exits: [*Mat x2] / *Exi / [*Sub]) -10/Exiles (discovered 2 exits: *Min x2) -9/Mines -8/Materials (discovered 2 exits: *Sto x2) -8/Storage -8/Garrison (discovered 1 exit: [*Fac]) History --------- Turn | Location | Event 9 | -11/Scrapyard | Discovered new exit (range 13) 159 | -11/Scrapyard | Entered Materials 317 | -10/Materials | Build established: Mutant 392 | -10/Materials | Discovered new exit (range 16) 438 | -10/Materials | Discovered new exit (range 10) 482 | -10/Materials | Entered Mines 604 | -10/Mines | Discovered new exit (range 15) 612 | -10/Mines | Received a Rocket Launcher from a helpful Derelict 655 | -10/Mines | Found a Scrap Suit stashed away for nefarious purposes 659 | -10/Mines | Found Scrap Suit 752 | -10/Mines | Discovered new exit (range 8) 911 | -10/Mines | Learned location of Storage (-8) 1103 | -10/Mines | Discovered new exit (range 12) 1198 | -10/Mines | Deemed a non-threat by the Exiles lab entrance 1199 | -10/Mines | Discovered new exit (range 5) 1202 | -10/Mines | Entered Exiles 1213 | -10/Exiles | Discovered new exit (range 15) 1223 | -10/Exiles | Met 8R-AWN 1235 | -10/Exiles | Met EX-HEX 1258 | -10/Exiles | Met EX-BIN 1267 | -10/Exiles | Aligned with FarCom system 1268 | -10/Exiles | Given EX-Vault access code 1291 | -10/Exiles | Opened EX-Vault 1296 | -10/Exiles | Found Potential Leg 1299 | -10/Exiles | Found Potential Leg 1317 | -10/Exiles | Warned to stay clear of 0b10 Research branches 1348 | -10/Exiles | Met EX-DEC 1463 | -10/Exiles | Found Gui. Plasma Cannon 1466 | -10/Exiles | Found Superbattery 1572 | -10/Exiles | Discovered new exit (range 10) 1678 | -10/Exiles | Stole three prototypes: Potential Leg, Superbattery, Gui. Plasma Cannon 1678 | -10/Exiles | Entered Mines 1734 | -9/Mines | Found the Drone Emporium 1744 | -9/Mines | Found Prototype Device 1887 | -9/Mines | Discovered new exit (range 7) 1902 | -9/Mines | Assembled infested the area 1904 | -9/Mines | Learned location of 1 exit from Lower Caves 1907 | -9/Mines | Assisted by a Guerilla fighting off Assembled 1914 | -9/Mines | Entered Materials 1914 | -8/Materials | Evolved 4 slots: Propulsion x2, Utility x2 1915 | -8/Materials | Identified exit to Storage 2104 | -8/Materials | Garrison activated, responded to threat 2175 | -8/Materials | Lost 3 parts (1n1u1w) 2266 | -8/Materials | Repaired Rocket Launcher 2309 | -8/Materials | Lost 3 parts (1n2u) 2314 | -8/Materials | First assault squad dispatched 2345 | -8/Materials | Discovered exit to Storage (range 15) 2361 | -8/Materials | Entered Storage 2363 | -8/Storage | FarCom data flow suspended 2422 | -8/Storage | Garrison activated, responded to threat 2470 | -8/Storage | Crushed by falling debris 2509 | -8/Storage | Core integrity fell below 50% 2511 | -8/Storage | Identified exit to Garrison 2514 | -8/Storage | Entered Garrison 2516 | -8/Garrison | Identified Decoy Drone Bay 2524 | -8/Garrison | Destroyed 7 combat bots 2536 | -8/Garrison | Lost 5 parts (1p2n2w) 2542 | -8/Garrison | Triggered checkpoint 2564 | -8/Garrison | Triggered checkpoint 2564 | -8/Garrison | Triggered checkpoint 2570 | -8/Garrison | Discovered new exit (range 64) 2572 | -8/Garrison | Triggered checkpoint 2598 | -8/Garrison | Triggered checkpoint 2598 | -8/Garrison | Garrison Relay disabled 2625 | -8/Garrison | Lost 12 allies 2739 | -8/Garrison | Core integrity fell below 20% 2761 | -8/Garrison | Destroyed 10 combat bots 2778 | -8/Garrison | Destroyed by Y-45 Defender with Heavy Assault Rifle Last Messages --------------- Imp. Signal Interpreter temporarily disabled. Extracted 15 energy. Overheating: Matter decay (-26). Extracted 15 energy. Overheating: Broken Potential Leg damaged (-27). Extracted 15 energy. Overheating: Imp. Signal Interpreter damaged (-6). Acquired 109 matter. Hammer destroyed. Slammed into Y-45 Defender. Wheel destroyed. Acquired 51 matter. Slammed into Y-45 Defender. Broken Potential Leg destroyed. Slammed into Y-45 Defender. Wheel destroyed. System corrupted by crushing effect (+5). System corrupted: Matter fused (-6). Acquired 11 matter. Acquired Lgt. Assault Rifle. Map ----- +----------------------------------------------------+ | ??????????????????????????????????????????? | | ?????????????????????????????#######??????? | | ?????????????????????????????# #??????? | | ?????????????????????????????# < #??????? | | ?????????????????????????????? #??????? | | ???????????????????????????????# #??????? | | ???????????????????????????????# #??????? | | ???????????????????????????????# %#??????? | | ???????????????????????????????# #??????? | | ???????????????????????????????# #??????? | | ???????????????????????????????# #??????? | | ???????????????????????????????# #??????? | | ???????????????????????????????# #??????? | | ???????????????????????????????# ##?????? | | ???????????????????????????????# ?????? | | ???????????????????????????????# ??????? | | ???????????????????????????????# ?????? | | ???????????????????????????????# ##?????? | | ???????????????????????????????# #??????? | | ???????????????????????????????# #??????? | | ???????????????????????????????# #??????? | | ???????????????????????????????# #??????? | | ???????????????????????????????# #??????? | | ???????????####????????????????# #??????? | | ??????????##!!################## #??????? | | ??????????#!*!s * @Y== !*%[%!= #??????? | | ??????????#![=##!==%[%= %==*= #??????? | | ??????????##!!#######=*######### #??????? | | ???????????####?????# #???????# #??????? | | ????????????????????" #???????#=% #??????? | | ????????????????????" ???????#[%^+ ?????? | | ????????????????????" "??????# * ###????? | | ????????????????????" "#?????# #??????? | | ????????????????????" #"#?????# ######## | | ????????????????????# ###?????# | | ????????????????????####???????# | | ???????????????????????????????# | | ???????????????????????????????############ | | ????????????????????????????????????????### | | ????????????????????????????????????????# | | ????????????????????????????????????????# | | ????????????????????????????????????????# | | ????????????????????????????????????????# | | ????????????????????????????????????????### | | ??????????????????????????????????????????# | | ??????????????????????????????????????????+ | | ??????????????????????????????????????????+ | | ??????????????????????????????????????????# | | ??????????????????????????????????????????# | | ??????????????????????????????????????????# | +----------------------------------------------------+ Best States ------------- Heat Dissipation 31 Energy Generation 14 Energy Capacity 275 Matter Stores 300 Matter Capacity 300 Sight Range 16 Terrain Scan Density 10 Weapon Shielding 33 Evasion (%) 63 Item Schematics ----------------- None Robot Schematics ------------------ None Fabricated ------------ Nothing Repaired ---------- Rocket Launcher | 10% | -8/Materials Studied --------- None Alien Tech Used ----------------- None Achievements -------------- Morally Flexible Plot Armor Release The Drones! Challenges ------------ None Game ------ Seed MagneticBoreVibroblade Manual? 0 Play Time 00:45:11 Cumulative 37.5 hours Start 2026.08.27 @ 21:44:41 End 2026.08.27 @ 22:29:36 Sessions 1 Manual Loads 0 Difficulty Rogue Special Mode None Game No. 73 Rogue 73 Adventurer 0 Explorer 0 Win Type - Total 0 Types 0/0/0/0/0/0/0/0/0/0 Lore% 30 Gallery% 22 Achievement% 23 Wizard Run 0 Options --------- Layout 1 ASCII 0 Keyboard 1 Movement Arrows Keybinds 0 Fullscreen 0 Font 14/SmallcapsGlow Map View 55x38 Zoom Use 0% Tactical HUD 0 Map Filters NONE Filters NONE Steam 1 RUN: 0a6a83f1-d8dc-488c-8601-efe1a5e11405